fUST/lending_fUST_20240119
["ID","MTS","AMOUNT","RATE_DAILY","PERIOD"]
[312124025,1705650646562,-300.0,0.00032876,2]
[312124026,1705650646571,-500.0,0.00032876,2]
[312124027,1705650646580,-447.25727815,0.00032876,7]
[312124028,1705650646589,-536.93048231,0.00032876,7]
[312124029,1705650646598,-203.5785154,0.00032876,7]
[312124030,1705650646607,-500.0,0.00032876,2]
[312124031,1705650646616,-643.41580208,0.00032876,7]
[312124032,1705650646628,-500.0,0.00032876,2]
[312124033,1705650646637,-500.0,0.00032876,2]
[312124034,1705650646647,-500.0,0.00032876,7]
[312124035,1705650646656,-190.19169914,0.00032876,7]
[312124036,1705650646665,-325.70107502,0.00032876,7]
[312124037,1705650646673,-500.0,0.00032876,7]
[312124038,1705650646682,-357.60804968,0.00032876,7]
[312124039,1705650646692,-500.0,0.00032876,7]
[312124040,1705650646700,-633.06166874,0.00032876,7]
[312124041,1705650646709,-500.0,0.00032876,7]
[312124042,1705650646718,-420.89926526,0.00032876,7]
[312124043,1705650646726,-500.0,0.00032876,7]
[312124044,1705650646735,-500.0,0.00032876,7]
[312124045,1705650646744,-500.0,0.00032876,7]
[312124046,1705650646753,-500.0,0.00032876,7]
[312124047,1705650646761,-500.0,0.00032876,7]
[312124048,1705650646771,-3638.62,0.00032876,2]
[312124049,1705650646780,-500.0,0.00032876,2]
[312124050,1705650646789,-500.0,0.00032876,2]
[312124051,1705650646798,-500.0,0.00032876,2]
[312124052,1705650646807,-4999.99,0.0003289,2]
[312124053,1705650646816,-162.97782864,0.00032899,4]
[312124054,1705650646825,-426859.67614378,0.000329,2]
[312124055,1705650646833,-700.0,0.0003291,2]
[312124056,1705650646842,-175.0,0.0003291,2]
[312124057,1705650646906,-577.5,0.0003291,2]
[312124058,1705650646915,-4463.02087982,0.0003291,2]
[312124059,1705650646924,-177.05009375,0.0003291,2]
[312124060,1705650646933,-289.1818198,0.00032925,2]
[312124061,1705650646942,-6762.26543772,0.00033,4]
[312124062,1705650646952,-386.32476631,0.00033,2]
[312124063,1705650646961,-1000.0,0.00033,33]
[312124064,1705650646970,-181.0,0.00033,2]
[312124065,1705650646981,-170.0,0.00033,2]
[312124066,1705650646990,-172.0,0.00033,2]
[312124067,1705650646999,-6000.0,0.00033044,2]
[312124068,1705650647009,-154.12939898,0.00033124,7]
[312124069,1705650647019,-155.25159228,0.00033148,4]
[312124070,1705650647029,-155.52830772,0.00033149,4]
[312124071,1705650647038,-500.0,0.0003315,3]
[312124072,1705650647047,-521.38601763,0.0003315,3]
[312124073,1705650647057,-500.0,0.0003315,3]
[312124074,1705650647066,-500.0,0.0003315,3]
[312124075,1705650647076,-500.0,0.0003315,3]
[312124076,1705650647086,-500.0,0.0003315,3]
[312124077,1705650647096,-581.11900681,0.0003315,3]
[312124078,1705650647106,-500.0,0.0003315,3]
[312124079,1705650647116,-500.0,0.0003315,3]
[312124080,1705650647128,-500.0,0.0003315,3]
[312124081,1705650647138,-500.0,0.0003315,3]
[312124082,1705650647147,-500.0,0.0003315,3]
[312124083,1705650647156,-500.0,0.0003315,3]
[312124084,1705650647166,-500.0,0.0003315,3]
[312124085,1705650647176,-502.91124872,0.0003315,3]
[312124086,1705650647187,-500.0,0.0003315,3]
[312124087,1705650647196,-500.0,0.0003315,3]
[312124088,1705650647207,-402.31398603,0.0003315,3]
[312124089,1705650647217,-440.42890775,0.0003315,3]
[312124090,1705650647229,-500.0,0.0003315,3]
[312124091,1705650647240,-524.18602468,0.0003315,3]
[312124092,1705650647250,-500.0,0.0003315,3]
[312124093,1705650647261,-500.0,0.0003315,3]
[312124094,1705650647272,-500.0,0.0003315,3]
[312124095,1705650647281,-500.0,0.0003315,3]
[312124096,1705650647291,-501.4314439,0.0003315,3]
[312124097,1705650647301,-500.0,0.0003315,3]
[312124098,1705650647311,-500.0,0.0003315,3]
[312124099,1705650647321,-200.0,0.0003315,3]
[312124100,1705650647330,-500.0,0.0003315,3]
[312124101,1705650647339,-500.0,0.0003315,3]
[312124102,1705650647348,-500.0,0.0003315,3]
[312124103,1705650647358,-500.0,0.0003315,3]
[312124104,1705650647370,-500.0,0.0003315,3]
[312124105,1705650647381,-503.42884817,0.0003315,3]
[312124106,1705650647390,-502.88614467,0.0003315,3]
[312124107,1705650647400,-150.0,0.0003315,3]
[312124108,1705650647409,-500.0,0.0003315,3]
[312124109,1705650647419,-500.0,0.0003315,3]
[312124110,1705650647428,-500.0,0.0003315,3]
[312124111,1705650647438,-500.76349209,0.0003315,3]
[312124112,1705650647448,-500.0,0.0003315,3]
[312124113,1705650647457,-503.70030649,0.0003315,3]
[312124114,1705650647467,-500.0,0.0003315,3]
[312124115,1705650647477,-500.49039529,0.0003315,3]
[312124116,1705650647486,-209.72856301,0.0003315,3]
[312124117,1705650647495,-500.0,0.0003315,3]
[312124118,1705650647504,-514.14096888,0.0003315,3]
[312124119,1705650647513,-500.0,0.0003315,3]
[312124120,1705650647523,-500.0,0.0003315,3]
[312124121,1705650647532,-500.0,0.0003315,3]
[312124122,1705650647541,-500.0,0.0003315,3]
[312124123,1705650647550,-499.25770796,0.0003315,3]
[312124124,1705650647559,-500.0,0.0003315,3]
[312124125,1705650647569,-500.0,0.0003315,3]
[312124126,1705650647578,-500.0,0.0003315,3]
[312124127,1705650647587,-500.0,0.0003315,3]
[312124128,1705650647597,-500.0,0.0003315,3]
[312124129,1705650647606,-501.19114178,0.0003315,7]
[312124130,1705650647615,-500.0,0.0003315,3]
[312124131,1705650647628,-500.0,0.0003315,3]
[312124132,1705650647637,-500.0,0.0003315,3]
[312124133,1705650647645,-503.89430269,0.0003315,3]
[312124134,1705650647654,-500.0,0.0003315,3]
[312124135,1705650647663,-500.0,0.0003315,3]
[312124136,1705650647672,-500.0,0.0003315,3]
[312124137,1705650647680,-500.0,0.0003315,3]
[312124138,1705650647690,-500.0,0.0003315,3]
[312124139,1705650647699,-296.75355326,0.0003315,3]
[312124141,1705650647708,-500.0,0.0003315,3]
[312124143,1705650647718,-500.0,0.0003315,2]
[312124145,1705650647727,-501.32970261,0.0003315,3]
[312124147,1705650647737,-500.0,0.0003315,3]
[312124149,1705650647746,-635.96694651,0.0003315,3]
[312124151,1705650647755,-500.0,0.0003315,3]
[312124153,1705650647764,-347.0980186,0.0003315,3]
[312124165,1705650648220,-159.61949,0.00030137,2]
[312124166,1705650648229,-500.0,0.00030898,2]
[312124167,1705650648239,-501.70867433,0.00030898,2]
[312124168,1705650648248,-159.61949,0.00031022,2]
[312124169,1705650648258,-500.0,0.00032876,2]
[312124170,1705650648267,-500.0,0.00032876,7]
[312124171,1705650648277,-251.28150575,0.00032876,7]
[312124172,1705650648286,-152.9019814,0.0003315,3]
[312124173,1705650648296,-500.0,0.0003315,3]
[312124174,1705650648305,-500.0,0.0003315,3]
[312124175,1705650648314,-500.30794115,0.0003315,3]
[312124176,1705650648323,-500.0,0.0003315,3]
[312124177,1705650648333,-500.0,0.0003315,3]
[312124178,1705650648342,-500.0,0.0003315,3]
[312124179,1705650648352,-500.0,0.0003315,3]
[312124180,1705650648361,-1000.0,0.0003315,2]
[312124181,1705650648374,-500.0,0.0003315,3]
[312124182,1705650648384,-851.62,0.0003315,3]
[312124183,1705650648393,-500.0,0.0003315,3]
[312124184,1705650648403,-533.17519764,0.0003315,3]
[312124185,1705650648413,-500.0,0.0003315,3]
[312124186,1705650648422,-500.0,0.0003315,3]
[312124187,1705650648433,-500.0,0.0003315,3]
[312124188,1705650648442,-501.00583222,0.0003315,3]
[312124189,1705650648452,-500.56555605,0.0003315,3]
[312124190,1705650648462,-500.0,0.0003315,3]
[312124191,1705650648472,-500.0,0.0003315,3]
[312124192,1705650648482,-500.0,0.0003315,3]
[312124193,1705650648491,-500.0,0.0003315,3]
[312124194,1705650648501,-500.0,0.0003315,3]
[312124195,1705650648510,-500.0,0.0003315,3]
[312124196,1705650648520,-500.0,0.0003315,3]
[312124197,1705650648529,-500.0,0.0003315,3]
[312124198,1705650648538,-500.0,0.0003315,3]
[312124199,1705650648548,-500.0,0.0003315,3]
[312124200,1705650648557,-158.37445492,0.0003315,3]
[312124201,1705650648566,-500.0,0.0003315,3]
[312124202,1705650648576,-500.0,0.0003315,3]
[312124203,1705650648585,-505.84684229,0.0003315,3]
[312124204,1705650648594,-500.0,0.0003315,3]
[312124205,1705650648603,-500.0,0.0003315,2]
[312124206,1705650648613,-617.40713115,0.0003315,3]
[312124207,1705650648625,-1184.91,0.0003315,3]
[312124208,1705650648635,-500.0,0.0003315,3]
[312124209,1705650648644,-500.0,0.0003315,3]
[312124210,1705650648653,-500.98296989,0.0003315,3]
[312124211,1705650648663,-500.0,0.0003315,3]
[312124212,1705650648674,-500.0,0.0003315,3]
[312124213,1705650648684,-293.65379672,0.0003315,3]
[312124214,1705650648693,-503.11281892,0.0003315,3]
[312124215,1705650648704,-500.0,0.0003315,3]
[312124216,1705650648714,-503.28476532,0.0003315,3]
[312124217,1705650648724,-1000.0,0.0003315,2]
[312124218,1705650648734,-500.0,0.0003315,3]
[312124219,1705650648743,-500.0,0.0003315,3]
[312124220,1705650648753,-500.0,0.0003315,3]
[312124221,1705650648762,-500.0,0.0003315,3]
[312124222,1705650648771,-500.0,0.0003315,3]
[312124223,1705650648782,-500.0,0.0003315,3]
[312124224,1705650648792,-500.0,0.0003315,3]
[312124225,1705650648802,-500.0,0.0003315,3]
[312124226,1705650648812,-500.5698228,0.0003315,3]
[312124227,1705650648823,-503.42522656,0.0003315,3]
[312124228,1705650648831,-500.0,0.0003315,3]
[312124229,1705650648840,-500.47571973,0.0003315,3]
[312124230,1705650648849,-500.0,0.0003315,3]
[312124231,1705650648858,-501.03488795,0.0003315,3]
[312124232,1705650648870,-500.0,0.0003315,3]
[312124233,1705650648880,-500.0,0.0003315,3]
[312124234,1705650648889,-501.94234063,0.0003315,3]
[312124235,1705650648898,-500.0,0.0003315,3]
[312124236,1705650648908,-500.0,0.0003315,3]
[312124237,1705650648917,-202.65450831,0.0003315,3]
[312124238,1705650648926,-500.0,0.0003315,3]
[312124239,1705650648935,-500.0,0.0003315,3]
[312124240,1705650648944,-500.0,0.0003315,3]
[312124241,1705650648953,-500.0,0.0003315,3]
[312124242,1705650648962,-500.0,0.0003315,3]
[312124243,1705650648971,-500.0,0.0003315,3]
[312124244,1705650648981,-240.94076007,0.0003315,3]
[312124245,1705650648991,-504.32707851,0.0003315,3]
[312124246,1705650649000,-500.0,0.0003315,3]
[312124247,1705650649063,-500.0,0.0003315,3]
[312124248,1705650649072,-500.0,0.0003315,3]
[312124249,1705650649082,-512.03505382,0.0003315,3]
[312124250,1705650649090,-500.0,0.0003315,3]
[312124251,1705650649099,-500.0,0.0003315,3]
[312124252,1705650649108,-500.0,0.0003315,3]
[312124253,1705650649117,-501.49907098,0.0003315,3]
[312124254,1705650649128,-500.0,0.0003315,3]
[312124255,1705650649137,-500.0,0.0003315,3]
[312124256,1705650649146,-500.0,0.0003315,3]
[312124257,1705650649155,-500.0,0.0003315,3]
[312124258,1705650649166,-500.0,0.0003315,3]
[312124259,1705650649177,-597.89688025,0.0003315,3]
[312124260,1705650649186,-500.0,0.0003315,3]
[312124261,1705650649195,-500.0,0.0003315,3]
[312124262,1705650649203,-505.63003391,0.0003315,3]
[312124263,1705650649213,-613.99404938,0.0003315,3]
[312124264,1705650649222,-494.51880819,0.0003315,3]
[312124399,1705651645103,-460.17684779,0.00024999,2]
[312124401,1705651653085,-183.87799809,0.00024999,2]
[312124402,1705651653105,-2374.29788154,0.00025,2]
[312124403,1705651653125,-2139.90233486,0.00028,2]
[312124404,1705651653145,-147.36592593,0.00028559,2]
[312124469,1705651831859,-1113.91161195,0.00026998,2]
[312124470,1705651831870,-165.694862,0.00028285,2]
[312124471,1705651831880,-640.03711729,0.00028559,2]
[312124472,1705651831890,-636.22854748,0.00028559,2]
[312124473,1705651831903,-2579.23292693,0.00028559,2]
[312124474,1705651831913,-154.92253873,0.00028559,2]
[312124475,1705651831923,-305.51246618,0.00028559,2]
[312124476,1705651831933,-261.40839953,0.00028559,2]
[312124477,1705651831942,-154.92253873,0.00028559,2]
[312124478,1705651831951,-620.26741538,0.00028559,2]
[312124479,1705651831961,-1109.19428477,0.00028559,2]
[312124480,1705651831971,-1824.95710943,0.00028559,2]
[312124481,1705651831980,-24900.0,0.00028972,2]
[312124482,1705651831991,-202.971678,0.00029751,2]
[312124483,1705651832000,-265.02619235,0.000299,2]
[312124484,1705651832009,-1962.87,0.00029989,3]
[312124485,1705651832019,-1635.72,0.00029989,3]
[312124486,1705651832028,-4884.25,0.0002999,3]
[312124487,1705651832038,-4070.21,0.0002999,3]
[312124488,1705651832047,-3391.84,0.0002999,3]
[312124489,1705651832056,-2826.53,0.0002999,3]
[312124490,1705651832065,-2355.44,0.0002999,3]
[312124491,1705651832074,-155.52830772,0.00029998,2]
[312124492,1705651832083,-162.97782864,0.00029998,2]
[312124493,1705651832092,-460.17684779,0.00029998,2]
[312124494,1705651832101,-2072.61065155,0.00029998,2]
[312124495,1705651832110,-450.30552196,0.00029998,2]
[312124496,1705651832119,-155.42159485,0.00029998,2]
[312124497,1705651832128,-561.09100671,0.00029998,2]
[312124498,1705651832137,-155.25159228,0.00029999,2]
[312124499,1705651832146,-259.95319182,0.00029999,2]
[312124500,1705651832155,-500.0,0.00029999,2]
[312124501,1705651832165,-525.89705403,0.00029999,2]
[312124502,1705651832174,-633.06166874,0.00029999,2]
[312124503,1705651832183,-500.0,0.00029999,2]
[312124504,1705651832192,-190.19169914,0.00029999,2]
[312124505,1705651832202,-417.2093913,0.00029999,2]
[312124506,1705651832211,-500.0,0.00029999,2]
[312124507,1705651832220,-500.0,0.00029999,2]
[312124508,1705651832230,-500.0,0.00029999,2]
[312124509,1705651832239,-500.0,0.00029999,2]
[312124510,1705651832248,-500.0,0.00029999,2]
[312124511,1705651832257,-500.0,0.00029999,2]
[312124512,1705651832266,-500.0,0.00029999,2]
[312124513,1705651832276,-361.72886011,0.00029999,2]
[312124514,1705651832285,-500.0,0.00029999,2]
[312124515,1705651832294,-500.0,0.00029999,2]
[312124516,1705651832303,-500.0,0.00029999,2]
[312124517,1705651832312,-500.0,0.00029999,2]
[312124518,1705651832321,-500.0,0.00029999,2]
[312124519,1705651832330,-500.0,0.00029999,2]
[312124520,1705651832342,-500.0,0.00029999,2]
[312124521,1705651832351,-500.0,0.00029999,2]
[312124522,1705651832360,-500.0,0.00029999,2]
[312124523,1705651832370,-500.0,0.00029999,2]
[312124524,1705651832379,-500.0,0.00029999,2]
[312124525,1705651832389,-500.0,0.00029999,2]
[312124526,1705651832398,-500.0,0.00029999,2]
[312124527,1705651832407,-368.97376021,0.00029999,2]
[312124528,1705651832418,-500.0,0.00029999,2]
[312124529,1705651832427,-500.0,0.00029999,2]
[312124530,1705651832436,-225.38445172,0.00029999,2]
[312124531,1705651832446,-521.80015784,0.00029999,4]
[312124532,1705651832455,-203.57851541,0.00029999,4]
[312124533,1705651832465,-536.93048231,0.00029999,4]
[312124534,1705651832480,-106.63521705,0.00029999,4]
[312124585,1705651838077,-1363.1,0.00029989,3]
[312124588,1705651838089,-7050.15735066,0.00029998,2]
[312124590,1705651838100,-536.78058503,0.00029999,4]
[312124592,1705651838111,-385.8746002,0.0003,3]
[312124594,1705651838121,-166.73517574,0.0003,2]
[312124597,1705651838132,-30319.07639528,0.0003,2]
[312124599,1705651838143,-688.01285151,0.0003,4]
[312124601,1705651838154,-2192.42916619,0.0003,2]
[312124603,1705651838164,-200482.25776242,0.0003,2]
[312124605,1705651838175,-30479.54764278,0.0003,3]
[312124608,1705651838186,-2318.75235601,0.0003,4]
[312124611,1705651838196,-166192.5498517,0.0003,30]
[312124615,1705651838207,-185.0,0.0003,2]
[312124617,1705651838218,-197.66015105,0.0003013,2]
[312124619,1705651838228,-288.632504,0.00030137,2]
[312124622,1705651838239,-159.61949,0.00030137,2]
[312124624,1705651838250,-3008.64456068,0.000305,2]
[312124626,1705651838260,-437.0,0.00030745,30]
[312124628,1705651838271,-437.0,0.00030755,30]
[312124630,1705651838283,-437.0,0.00030765,30]
[312124632,1705651838294,-238.5,0.00030775,30]
[312124635,1705651838305,-3039.65388694,0.00030785,2]
[312124637,1705651838316,-1272.62451989,0.000308,2]
[312124639,1705651838327,-239.21853809,0.00030897,6]
[312124641,1705651838339,-288.632504,0.00030959,2]
[312124644,1705651838350,-108229.82264666,0.00031,4]
[312124646,1705651838360,-4999.98,0.0003129,2]
[312124648,1705651838369,-8151.96892122,0.00031492,4]
[312124650,1705651838378,-12246.33131918,0.00031493,5]
[312124664,1705651838498,-288.632504,0.00031781,2]
[312124666,1705651838507,-155.0,0.000319,2]
[312124668,1705651838516,-641.22478369,0.00032,10]
[312124669,1705651838525,-76058.86944664,0.00032,15]
[312124671,1705651838535,-3134.05888736,0.00032,2]
[312124673,1705651838544,-154.48409285,0.00032071,7]
[312124676,1705651838555,-154.48409285,0.00032227,7]
[312124677,1705651838568,-154.95351395,0.00032485,4]
[312124679,1705651838577,-1958.40232038,0.000325,15]
[312124682,1705651838590,-6063.13975501,0.000325,15]
[312124850,1705651842904,-255.83809238,0.00028559,2]
[312124851,1705651842916,-853.35619239,0.00028559,2]
[312124852,1705651842925,-477.27450965,0.000325,15]
[312124853,1705651842962,-293.26520376,0.000325,15]
[312124881,1705651845929,-804.678,0.00028559,2]
[312124882,1705651845941,-2410.78347441,0.00028559,2]
[312124883,1705651845950,-244.88923554,0.00029587,2]
[312124884,1705651846132,-868.67771177,0.00029587,2]
[312124885,1705651846141,-226.6103945,0.000325,15]
[312124898,1705651853609,-261.40839953,0.00028559,2]
[312124899,1705651853633,-238.39586168,0.00028559,2]
[312124900,1705651853656,-267.20815376,0.00028559,2]
[312124901,1705651853679,-232.98758503,0.00028559,2]
[312124915,1705652375875,1571.4961928,0.00027733,120]
[312124916,1705652425872,-329.3649862,0.00022999,2]
[312124917,1705652425900,-380.0,0.00023,2]
[312124918,1705652439497,-261.40839953,0.00027733,2]
[312124919,1705652445123,-24900.0,0.00028365,2]
[312124920,1705652445179,-1417.41072532,0.00028557,5]
[312124921,1705652445201,-4799.37530433,0.00028558,2]
[312124922,1705652445222,-1591.9695244,0.00028559,2]
[312124923,1705652445243,-305.51246618,0.00028559,2]
[312124924,1705652445264,-421.18993586,0.00028559,2]
[312124925,1705652445285,-934.65337107,0.00028559,2]
[312124926,1705652445307,-1135.92,0.0002899,3]
[312124927,1705652445329,-36141.46949363,0.00029,13]
[312124928,1705652450616,-1135.92,0.00029,13]
[312124929,1705652465599,-261.40839953,0.00027733,2]
[312124932,1705652471380,-848.41634659,0.000299,2]
[312124933,1705652471403,-372.0,0.0003,2]
[312124937,1705652556687,-269.22516423,0.00029,2]
[312124938,1705652556709,-2451.9577286,0.0003,2]
[312124939,1705652556729,-410.47740177,0.0003,4]
[312124940,1705652556750,-321.944428,0.00030137,2]
[312124941,1705652556771,-230.41616,0.000302,2]
[312124942,1705652556792,-2910.53237708,0.00030208,4]
[312124943,1705652556814,-167.291232,0.00030279,2]
[312124944,1705652556835,-989.05197746,0.00030356,2]
[312124945,1705652556856,-155.0,0.000308,2]
[312124946,1705652556877,-5000.0,0.00030844,10]
[312124947,1705652556898,-321.944428,0.00030959,2]
[312124948,1705652556919,-6582.74961314,0.00031,5]
[312124949,1705652556944,-200.0,0.000312,15]
[312124950,1705652556967,-4999.97,0.00031498,2]
[312124951,1705652556989,-306.0,0.0003177,30]
[312124952,1705652557011,-306.0,0.0003178,30]
[312124953,1705652557032,-321.944428,0.00031781,2]
[312124954,1705652557054,-456.5,0.0003179,3]
[312124955,1705652557075,-2372.39,0.0003179,3]
[312124956,1705652557096,-306.0,0.0003179,30]
[312124957,1705652557118,-332.01561823,0.00031798,4]
[312124958,1705652557221,-156.23501844,0.00031798,2]
[312124959,1705652557244,-261.2951745,0.00031798,4]
[312124960,1705652557265,-557.0187265,0.00031798,4]
[312124961,1705652557286,-166.58308548,0.00031798,4]
[312124962,1705652557307,-425.69649895,0.00031798,2]
[312124963,1705652557328,-763.13501669,0.00031798,4]
[312124964,1705652557349,-155.20106596,0.00031798,4]
[312124965,1705652557370,-171.23206932,0.00031798,4]
[312124966,1705652557392,-8151.96892122,0.00031798,4]
[312124967,1705652557413,-2227.80545964,0.00031798,4]
[312124968,1705652557433,-439.68276137,0.00031799,4]
[312124969,1705652557455,-208.6,0.00031799,2]
[312124970,1705652557477,-208.6,0.00031799,2]
[312124971,1705652557499,-208.6,0.00031799,2]
[312124972,1705652557520,-208.6,0.00031799,2]
[312124973,1705652557542,-208.6,0.00031799,2]
[312124974,1705652557563,-208.6,0.00031799,2]
[312124975,1705652557584,-208.6,0.00031799,2]
[312124976,1705652557606,-208.6,0.00031799,2]
[312124977,1705652557628,-208.6,0.00031799,2]
[312124978,1705652557649,-208.6,0.00031799,2]
[312124979,1705652557670,-450.39106146,0.00031799,4]
[312124980,1705652557691,-223.62863908,0.00031799,4]
[312124981,1705652557713,-375.85133762,0.00031799,4]
[312124982,1705652557734,-443.14316812,0.00031799,2]
[312124983,1705652557755,-178.80402484,0.00031799,2]
[312124984,1705652557780,-500.0,0.00031799,2]
[312124985,1705652557801,-531.96723428,0.00031799,2]
[312124986,1705652557824,-500.0,0.00031799,2]
[312124987,1705652557845,-500.0,0.00031799,2]
[312124988,1705652557867,-500.0,0.00031799,2]
[312124989,1705652557889,-617.03731607,0.00031799,2]
[312124990,1705652557911,-500.0,0.00031799,2]
[312124991,1705652558146,-500.0,0.00031799,2]
[312124992,1705652558172,-500.0,0.00031799,2]
[312124993,1705652558194,-500.0,0.00031799,2]
[312124994,1705652558219,-500.0,0.00031799,2]
[312124995,1705652558242,-221.38425612,0.00031799,2]
[312124996,1705652558266,-500.0,0.00031799,2]
[312124997,1705652558289,-500.0,0.00031799,2]
[312124998,1705652558310,-500.0,0.00031799,2]
[312124999,1705652558331,-500.0,0.00031799,2]
[312125000,1705652558353,-161.838,0.00031799,2]
[312125001,1705652558376,-192.9373001,0.000318,3]
[312125002,1705652558397,-295129.75330773,0.000318,2]
[312125041,1705652843098,-213.31905426,0.00029536,2]
[312125042,1705652843119,-165.90071,0.00029537,2]
[312125043,1705652843139,-668.65670349,0.000297,2]
[312125044,1705652843159,-268.49568654,0.0003,4]
[312125045,1705652843180,-167.291232,0.00030323,2]
[312125046,1705652843201,-29.12703422,0.00030559,2]
[312125064,1705653031989,-500.0,0.00030136,2]
[312125066,1705653031999,-167.1871135,0.00030137,2]
[312125067,1705653032009,-249.51102332,0.00030273,2]
[312125068,1705653032021,-250.48897668,0.00030273,2]
[312125069,1705653032031,-216.61032331,0.0003041,2]
[312125072,1705653038062,-283.38967669,0.0003041,2]
[312125073,1705653038075,-500.0,0.00030547,2]
[312125074,1705653038086,-2451.9577286,0.00030559,2]
[312125075,1705653038097,-283.06089695,0.00030559,3]
[312125076,1705653038107,-195.20473695,0.00030559,4]
[312125077,1705653038117,-202.7466072,0.00030559,2]
[312125078,1705653038130,-551.16425847,0.00030559,4]
[312125079,1705653038140,-551.16253486,0.00030559,4]
[312125080,1705653038150,-24870.87296578,0.00030559,2]
[312125081,1705653038160,-500.0,0.00030684,2]
[312125082,1705653038169,-295.7254187,0.00030684,2]
[312125083,1705653038178,-153.31495998,0.000308,2]
[312125084,1705653038187,-153.31495998,0.000308,2]
[312125085,1705653038195,-153.31495998,0.000308,2]
[312125086,1705653038204,-153.31495998,0.000308,2]
[312125087,1705653038213,-153.31495998,0.000308,2]
[312125088,1705653038221,-153.31495998,0.000308,2]
[312125089,1705653038230,-153.31495,0.000308,2]
[312125090,1705653038239,-500.0,0.00030821,2]
[312125091,1705653038248,-500.0,0.00030958,2]
[312125092,1705653038258,-12246.33131918,0.00031,5]
[312125093,1705653038266,-1000.0,0.00031,31]
[312125094,1705653038275,-500.0,0.00031095,2]
[312125095,1705653038284,-500.0,0.00031232,2]
[312125096,1705653038293,-500.0,0.00031369,2]
[312125097,1705653038302,-500.0,0.00031506,2]
[312125098,1705653038310,-205.94898392,0.00031643,2]
[312125099,1705653038319,-238.08130584,0.00031699,2]
[312125100,1705653038328,-719.0667112,0.000317,2]
[312125101,1705653038337,-38560.35367316,0.000317,3]
[312125102,1705653038346,-214.0,0.0003177,30]
[312125103,1705653038356,-214.0,0.0003178,30]
[312125105,1705653038365,-214.0,0.0003179,30]
[312125107,1705653038376,-222.91353684,0.00031798,4]
[312125108,1705653038384,-346.38618659,0.00031798,4]
[312125110,1705653038393,-439.58570389,0.00031798,4]
[312125113,1705653038403,-155.34362049,0.00031798,4]
[312125114,1705653038413,-214.0852314,0.00031798,4]
[312125117,1705653038423,-301.77611122,0.00031798,4]
[312125118,1705653038432,-4811.28224285,0.00031798,4]
[312125121,1705653038441,-191.31512244,0.00031798,4]
[312125122,1705653038450,-1160.53170858,0.00031798,4]
[312125124,1705653038459,-260.99609825,0.00031798,4]
[312125126,1705653038468,-253.97986618,0.00031798,4]
[312125128,1705653038477,-154.92253873,0.00031798,4]
[312125130,1705653038487,-228.01384031,0.00031799,4]
[312125132,1705653038496,-500.00000001,0.00031799,2]
[312125134,1705653038505,-192.93730008,0.000318,3]
[312125136,1705653038514,-434026.11030759,0.000318,2]
[312125153,1705653038658,-20057.73064875,0.000318,2]
[312125612,1705653043016,-151.02987154,0.000318,2]
[312125615,1705653043035,-124737.66885592,0.000318,2]
[312125618,1705653043046,-25710.5,0.000318,2]
[312125869,1705653046056,-1313.37229048,0.0003179,3]
[312125870,1705653046071,-663.62770952,0.0003179,3]
[312125871,1705653046080,-345.29384935,0.000318,2]
[312125886,1705653046877,-852.87,0.000318,2]
[312126002,1705653313867,-155.0,0.000297,2]
[312126006,1705653610599,156.28,0.000163,2]
[312126009,1705654038082,-1589.24944099,0.00029642,2]
[312126010,1705654038103,-607.13204194,0.00029642,2]